bitfinex/quotes_BTCUSD_20241223
["timestamp","ask_amount","ask_price","bid_price","bid_amount"]
[1734944467275,0.00061938,95550.0,95549.0,0.56265175]
[1734944467806,0.00061938,95550.0,95549.0,0.46134335]
[1734944472314,0.00061938,95550.0,95549.0,0.38324335]
[1734944483116,0.00061938,95550.0,95549.0,0.47666973]
[1734944483723,0.00061938,95550.0,95549.0,0.65717813]
[1734944483973,8.55e-05,95564.0,95562.0,0.15]
[1734944484216,0.0807,95592.0,95564.0,0.15]
[1734944484477,0.00012335,95573.0,95572.0,0.209266]
[1734944485428,0.00012335,95573.0,95572.0,0.286066]
[1734944485703,0.00012335,95573.0,95572.0,0.5373744]
[1734944485945,0.00012335,95573.0,95572.0,0.55816528]
[1734944486417,0.00012335,95573.0,95572.0,0.55916528]
[1734944487148,0.00012335,95573.0,95572.0,1.19077509]
[1734944488024,0.00012335,95573.0,95572.0,1.71393509]
[1734944488266,8.56e-05,95613.0,95599.0,0.209207]
[1734944488521,5.334e-05,95600.0,95599.0,0.4605154]
[1734944488811,5.334e-05,95600.0,95599.0,0.5399154]
[1734944489028,0.07390503,95609.0,95608.0,0.359187]
[1734944489289,0.07390503,95609.0,95608.0,0.5423954]
[1734944490242,0.07390503,95609.0,95608.0,0.56315276]
[1734944490703,0.07390503,95609.0,95608.0,1.44670553]
[1734944491604,0.07390503,95609.0,95608.0,1.68000032]
[1734944492272,0.07390503,95609.0,95608.0,1.68200032]
[1734944492492,0.07390503,95609.0,95608.0,1.6348461]
[1734944492710,0.07390503,95609.0,95608.0,1.6328461]
[1734944492930,0.07390503,95609.0,95608.0,1.6358461]
[1734944493152,0.07390503,95609.0,95608.0,1.10569907]
[1734944493565,0.07390503,95609.0,95608.0,1.09669907]
[1734944499891,0.01220854,95609.0,95608.0,1.09669907]
[1734944500101,8.56e-05,95613.0,95609.0,0.15]
[1734944500307,8.56e-05,95613.0,95612.0,0.359178]
[1734944500562,8.56e-05,95613.0,95612.0,0.9834364]
[1734944501434,0.000261,95633.0,95623.0,0.15]
[1734944501662,0.00024562,95629.0,95625.0,0.15]
[1734944501879,0.00024562,95629.0,95627.0,0.15]
[1734944502136,0.00024562,95629.0,95628.0,0.00104556]
[1734944502576,0.00024562,95629.0,95628.0,0.209143]
[1734944503905,0.00024562,95629.0,95628.0,0.211143]
[1734944504631,0.00024562,95629.0,95628.0,0.216143]
[1734944505470,0.00024562,95629.0,95628.0,0.2368894]
[1734944505675,0.00024562,95629.0,95628.0,0.24760226]
[1734944508286,0.00024562,95629.0,95628.0,0.57661066]
[1734944508715,0.00024562,95629.0,95628.0,1.09947066]
[1734944508929,0.00024562,95629.0,95628.0,1.09747066]
[1734944509349,0.00024562,95629.0,95628.0,1.09247066]
[1734944509788,0.00024562,95629.0,95628.0,1.09947066]
[1734944510214,0.00024562,95629.0,95628.0,1.10247066]
[1734944510911,0.00024562,95629.0,95628.0,1.09547066]
[1734944511330,0.00024562,95629.0,95628.0,1.09247066]
[1734944514028,0.000261,95633.0,95630.0,0.359139]
[1734944514239,2e-07,95633.0,95632.0,0.2]
[1734944514447,8.56e-05,95646.0,95645.0,0.438406]
[1734944514649,8.56e-05,95646.0,95645.0,1.0624844]
[1734944517199,8.56e-05,95646.0,95645.0,1.0622234]
[1734944517413,8.56e-05,95646.0,95645.0,1.08355407]
[1734944520331,8.56e-05,95646.0,95645.0,1.18355407]
[1734944520542,8.56e-05,95646.0,95645.0,1.19398048]
[1734944523100,0.0462,95682.0,95657.0,0.20908]
[1734944523306,0.00061888,95658.0,95657.0,1.0629884]
[1734944524414,0.00061888,95658.0,95657.0,1.0669884]
[1734944524626,0.00061888,95658.0,95657.0,1.0759884]
[1734944525006,0.00061888,95658.0,95657.0,0.9960884]
[1734944526311,0.00061888,95658.0,95657.0,1.0755884]
[1734944526737,0.00061888,95658.0,95657.0,1.1755884]
[1734944527156,0.00061888,95658.0,95657.0,1.1715884]
[1734944527377,0.00061888,95658.0,95657.0,1.1625884]
[1734944527587,0.00061888,95658.0,95657.0,1.1655884]
[1734944528024,0.00061888,95658.0,95657.0,1.1645884]
[1734944528218,0.00061888,95658.0,95657.0,1.1775884]
[1734944529391,0.00061888,95658.0,95657.0,1.18815165]
[1734944529597,0.00061888,95658.0,95657.0,1.28815165]
[1734944531443,0.0499,95697.0,95661.0,0.2]
[1734944531661,0.00024552,95669.0,95668.0,0.438256]
[1734944531873,0.00024552,95669.0,95668.0,1.0622044]
[1734944532074,1.6112,95834.0,95669.0,0.15]
[1734944532284,0.00015986,95699.0,95695.0,0.208996]
[1734944533137,0.00015986,95699.0,95695.0,0.417992]
[1734944533379,0.00015986,95699.0,95696.0,0.00104488]
[1734944534023,0.1013084,95698.0,95671.0,0.15]
[1734944534237,0.1013084,95698.0,95671.0,0.52262]
[1734944534450,0.209037,95677.0,95674.0,0.0206771]
[1734944534653,0.209037,95677.0,95674.0,0.5432871]
[1734944535076,0.0996,95676.0,95674.0,0.5432871]
[1734944535278,0.209041,95675.0,95674.0,0.52261]
[1734944535492,0.0486,95689.0,95675.0,0.15]
[1734944535699,0.051,95700.0,95689.0,0.209008]
[1734944535700,0.0964,95700.0,95689.0,0.209008]
[1734944535919,0.0964,95700.0,95693.0,0.209]
[1734944536143,0.0964,95700.0,95694.0,0.208999]
[1734944536347,0.0454,95709.0,95689.0,0.10091855]
[1734944536566,0.254368,95709.0,95695.0,0.208996]
[1734944536769,8.55e-05,95725.0,95696.0,0.0832]
[1734944536984,8.55e-05,95725.0,95724.0,0.15]
[1734944537217,8.55e-05,95725.0,95724.0,0.15104452]
[1734944537437,8.55e-05,95725.0,95724.0,0.15]
[1734944538108,0.0040855,95725.0,95724.0,0.15204462]
[1734944538319,8.55e-05,95725.0,95724.0,0.15104462]
[1734944538562,8.55e-05,95725.0,95724.0,0.67338462]
[1734944538784,8.55e-05,95725.0,95724.0,0.67234]
[1734944539199,8.55e-05,95725.0,95724.0,0.7736484]
[1734944540290,8.55e-05,95725.0,95724.0,0.7796484]
[1734944540500,8.55e-05,95725.0,95724.0,0.7756484]
[1734944540723,8.55e-05,95725.0,95724.0,0.90718105]
[1734944540934,8.55e-05,95742.0,95725.0,0.458931]
[1734944540935,7e-07,95726.0,95725.0,0.458931]
[1734944541211,7e-07,95726.0,95725.0,1.0825694]
[1734944541660,7e-07,95726.0,95725.0,1.1825694]
[1734944541888,5e-07,95742.0,95741.0,0.541096]
[1734944542100,0.01079187,95770.0,95753.0,0.30887]
[1734944542310,0.01079187,95770.0,95753.0,0.6894784]
[1734944542311,0.00053316,95754.0,95753.0,0.6894784]
[1734944542536,0.00053316,95754.0,95753.0,0.7106386]
[1734944542734,1e-08,95754.0,95753.0,0.6620386]
[1734944542957,0.1,95814.0,95794.0,0.358781]
[1734944543198,0.00024526,95795.0,95794.0,0.37981991]
[1734944543641,0.1144096,95822.0,95795.0,0.2307]
[1734944543642,0.0144096,95822.0,95795.0,0.2307]
[1734944543885,0.0144096,95822.0,95821.0,0.358722]
[1734944544509,0.0144096,95822.0,95821.0,0.4600304]
[1734944544717,0.0144096,95822.0,95821.0,0.358722]
[1734944544970,7e-05,95832.0,95821.0,0.358722]
[1734944544971,7e-05,95832.0,95831.0,0.3587]
[1734944545188,0.00022967,95832.0,95831.0,0.88045]
[1734944545612,0.00022967,95832.0,95831.0,0.9817584]
[1734944546022,0.00022967,95832.0,95831.0,0.88045]
[1734944546247,0.00022967,95832.0,95831.0,0.9817584]
[1734944546469,0.01651075,95832.0,95831.0,0.54808721]
[1734944546687,0.00022967,95832.0,95831.0,0.54808721]
[1734944546896,0.00022967,95832.0,95831.0,0.44677881]
[1734944547111,0.01628108,95832.0,95831.0,0.44677881]
[1734944547323,0.01628108,95837.0,95831.0,0.384525]
[1734944547536,0.01362729,95850.0,95831.0,0.388525]
[1734944547773,0.01628108,95832.0,95831.0,0.384525]
[1734944547979,0.01628108,95837.0,95831.0,0.386525]
[1734944548203,0.1013084,95849.0,95831.0,0.387525]
[1734944548414,0.01628108,95832.0,95831.0,0.385525]
[1734944548876,0.208691,95836.0,95831.0,0.385525]
[1734944549104,0.208665,95848.0,95831.0,0.385525]
[1734944549105,0.01628108,95847.0,95831.0,0.385525]
[1734944549311,0.01628108,95852.0,95832.0,0.15]
[1734944549524,0.20864,95859.0,95840.0,0.208679]
[1734944549741,0.208635,95861.0,95840.0,0.35927928]
[1734944550167,0.20862,95869.0,95846.0,0.208666]
[1734944550382,0.0455,95871.0,95846.0,0.417332]
[1734944550593,0.0455,95871.0,95847.0,0.00104326]
[1734944550804,0.0455,95871.0,95847.0,0.65993321]
[1734944551003,0.01628108,95853.0,95847.0,0.65993321]
[1734944551209,0.208656,95852.0,95847.0,0.65889]
[1734944551443,0.01628108,95848.0,95847.0,0.65889]
[1734944552515,0.22494408,95848.0,95847.0,0.65889]
[1734944552931,0.208615,95871.0,95848.0,0.208663]
[1734944553136,0.0462,95876.0,95849.0,0.33015154]
[1734944553351,0.0462,95876.0,95849.0,1.0879884]
[1734944554175,0.01628108,95874.0,95849.0,0.9879884]
[1734944554380,0.0462,95876.0,95849.0,0.9879884]
[1734944554579,0.0462,95876.0,95866.0,0.208622]
[1734944554788,0.04635957,95876.0,95867.0,0.10235135]
[1734944555006,0.04635957,95876.0,95867.0,0.96975235]
[1734944555210,0.04635957,95876.0,95872.0,0.208609]
[1734944555417,0.04635957,95876.0,95873.0,0.10235128]
[1734944555631,0.04635957,95876.0,95872.0,0.65875]
[1734944556250,0.04635957,95876.0,95872.0,0.7600584]
[1734944556495,0.02563952,95876.0,95873.0,0.00104294]
[1734944556686,0.02563952,95876.0,95873.0,0.65979294]
[1734944556892,0.02563952,95876.0,95873.0,0.65875]
[1734944557095,0.208604,95875.0,95873.0,0.65875]
[1734944557299,0.02563952,95876.0,95873.0,0.65875]
[1734944557497,0.208604,95875.0,95873.0,0.65875]
[1734944557917,0.1013084,95874.0,95873.0,0.65875]
[1734944558558,0.208604,95875.0,95873.0,0.65875]
[1734944558770,0.208604,95875.0,95873.0,0.59680481]
[1734944559003,0.02563952,95876.0,95873.0,0.59680481]
[1734944559233,0.208604,95875.0,95873.0,0.60080481]
[1734944559455,0.02563952,95876.0,95873.0,0.59680481]
[1734944559874,0.02563952,95876.0,95873.0,0.59780481]
[1734944560087,0.02563952,95876.0,95873.0,0.59680481]
[1734944560965,0.208604,95875.0,95873.0,0.59680481]
[1734944561664,0.208604,95875.0,95873.0,0.5894486]
[1734944561914,0.1013084,95874.0,95873.0,0.5894486]
[1734944562341,0.1013084,95874.0,95873.0,0.52752429]
[1734944562555,0.208604,95875.0,95873.0,0.52752429]
[1734944562977,0.1013084,95874.0,95873.0,0.52752429]
[1734944563194,0.1013084,95874.0,95873.0,0.52852429]
[1734944563410,0.1473084,95874.0,95873.0,0.52752429]
[1734944564077,0.2473084,95874.0,95873.0,0.52752429]
[1734944564318,0.2473084,95874.0,95873.0,0.42652429]
[1734944564541,0.2013084,95874.0,95873.0,0.37652429]
[1734944564962,0.2013084,95874.0,95873.0,0.31459946]
[1734944565394,0.1013084,95874.0,95873.0,0.31459946]
[1734944566076,0.1013084,95874.0,95873.0,0.24259946]
[1734944566277,0.1013084,95874.0,95873.0,0.24159946]
[1734944566676,0.1013084,95874.0,95873.0,0.24259946]
[1734944566883,0.1013084,95874.0,95873.0,0.24159946]
[1734944568191,0.1013084,95874.0,95873.0,0.13829446]
[1734944568192,0.3013084,95874.0,95873.0,0.13829446]
[1734944568398,0.3013084,95874.0,95873.0,0.13729446]
[1734944568756,0.3013084,95874.0,95873.0,0.02773276]
[1734944569082,0.3013084,95874.0,95873.0,0.02873276]
[1734944569289,0.3013084,95874.0,95873.0,0.001]
[1734944569498,0.208646,95856.0,95831.0,0.0001706]
[1734944569675,0.1,95857.0,95831.0,0.0001706]
[1734944569676,0.1013084,95855.0,95831.0,0.0001706]
[1734944570014,0.208695,95834.0,95831.0,0.0001706]
[1734944570236,0.41739,95834.0,95831.0,0.0001706]
[1734944571127,0.203799,95834.0,95831.0,0.0001706]
[1734944571335,0.412493,95834.0,95831.0,0.00070273]
[1734944571721,0.40404547,95834.0,95831.0,0.00070273]
[1734944572488,0.1,95852.0,95831.0,0.00470273]
[1734944572707,0.1013084,95851.0,95831.0,0.00070273]
[1734944572923,8.53e-05,95848.0,95831.0,0.00070273]
[1734944573139,0.208677,95842.0,95831.0,0.00170273]
[1734944573363,8.53e-05,95848.0,95831.0,0.00170273]
[1734944573578,8.53e-05,95848.0,95836.0,0.208689]
[1734944573799,8.53e-05,95848.0,95844.0,0.208672]
[1734944574010,8.53e-05,95848.0,95838.0,0.15060028]
[1734944574228,8.53e-05,95848.0,95839.0,0.00104326]
[1734944574458,8.53e-05,95848.0,95839.0,0.208682]
[1734944574669,8.53e-05,95848.0,95843.0,0.208674]
[1734944574884,8.53e-05,95848.0,95839.0,0.208682]
[1734944575105,0.0010853,95848.0,95839.0,0.208682]
[1734944575314,0.0010853,95848.0,95843.0,0.208673]
[1734944575775,0.0010853,95848.0,95846.0,0.15]
[1734944575988,0.0010853,95848.0,95847.0,0.46101654]
[1734944576201,0.0010853,95848.0,95847.0,0.4599734]
[1734944576631,8.53e-05,95848.0,95847.0,0.358665]
[1734944577321,8.53e-05,95848.0,95847.0,0.5599734]
[1734944578924,0.208571,95891.0,95873.0,0.208607]
[1734944579134,0.00104326,95890.0,95873.0,0.208607]
[1734944579964,0.01052856,95884.0,95873.0,0.208607]
[1734944580178,0.02572482,95876.0,95867.0,0.20862]
[1734944580399,0.02572482,95876.0,95866.0,0.15060028]
[1734944580631,0.20964726,95875.0,95866.0,0.15060028]
[1734944580858,0.02572482,95876.0,95866.0,0.15060028]
[1734944581076,0.02572482,95876.0,95868.0,0.20862]
[1734944581512,0.02572482,95876.0,95867.0,0.208622]
[1734944581726,0.02572482,95876.0,95866.0,0.15060028]
[1734944582195,0.02572482,95876.0,95866.0,0.15164326]
[1734944582413,0.02572482,95876.0,95871.0,0.208612]
[1734944582638,0.02572482,95876.0,95866.0,0.15060028]
[1734944582639,0.02572482,95876.0,95872.0,0.00104294]
[1734944582900,0.02572482,95876.0,95873.0,0.332708]
[1734944583112,0.02572482,95876.0,95873.0,0.541316]
[1734944583559,0.02572482,95876.0,95873.0,0.332708]
[1734944583709,0.02572482,95876.0,95873.0,0.1241]
[1734944584154,0.02572482,95876.0,95873.0,0.002]
[1734944585255,0.02572482,95876.0,95871.0,0.09189632]
[1734944585839,0.02572482,95876.0,95873.0,0.002]
[1734944586117,0.20964726,95875.0,95871.0,0.09189632]
[1734944586324,0.41825226,95875.0,95871.0,0.09189632]
[1734944586537,0.208609,95873.0,95871.0,0.16444482]
[1734944586756,0.34238236,95872.0,95871.0,0.16444482]
[1734944587876,0.34238236,95872.0,95870.0,0.13850702]
[1734944588084,0.03246296,95871.0,95870.0,0.13850702]
[1734944588309,0.19165627,95873.0,95870.0,0.13850702]
[1734944588526,0.00104326,95872.0,95870.0,0.13850702]
[1734944588759,0.20965426,95872.0,95870.0,0.13850702]
[1734944589147,0.20965426,95872.0,95870.0,0.34165934]
[1734944589148,0.208613,95871.0,95870.0,0.34165934]
[1734944589770,0.208616,95870.0,95867.0,0.0001706]
[1734944590012,0.30862,95868.0,95867.0,0.0001706]
[1734944590212,0.44240241,95868.0,95867.0,0.0001706]
[1734944590624,0.34240241,95868.0,95867.0,0.0001706]
[1734944591043,0.44240241,95868.0,95867.0,0.0001706]
[1734944591252,0.2,95866.0,95865.0,0.01978237]
[1734944591452,0.33482567,95866.0,95865.0,0.01978237]
[1734944591663,0.1,95855.0,95851.0,0.01978237]
[1734944591863,0.55212567,95854.0,95851.0,0.01978237]
[1734944592070,0.208655,95852.0,95851.0,0.01978237]
[1734944592286,0.44243741,95852.0,95851.0,0.01978237]
[1734944592683,0.54243741,95852.0,95851.0,0.01978237]
[1734944593122,0.54243741,95852.0,95847.0,0.13891765]
[1734944593123,0.208681,95840.0,95839.0,0.13891765]
[1734944593777,0.3099894,95840.0,95839.0,0.13891765]
[1734944593963,0.4099894,95840.0,95839.0,0.13891765]
[1734944594582,0.3099894,95840.0,95839.0,0.00053213]
[1734944595005,0.4099894,95840.0,95839.0,0.00053213]
[1734944595209,0.3099894,95840.0,95839.0,0.00053213]
[1734944595421,0.003,95840.0,95839.0,0.00053213]
[1734944595627,0.00404326,95840.0,95839.0,0.00053213]
[1734944596241,0.00404326,95840.0,95839.0,0.00553213]
[1734944596658,0.00104326,95840.0,95839.0,0.00553213]
[1734944596863,0.208681,95840.0,95839.0,0.00553213]
[1734944597073,0.211681,95840.0,95839.0,0.00553213]
[1734944598119,0.208681,95840.0,95839.0,0.00553213]
[1734944598533,0.210681,95840.0,95839.0,0.00553213]
[1734944598735,0.3119894,95840.0,95839.0,0.00570333]
[1734944598942,0.3149894,95840.0,95839.0,0.00570333]
[1734944600523,0.3149894,95840.0,95839.0,0.00070333]
[1734944600945,0.005,95840.0,95839.0,0.00070333]
[1734944601177,0.005,95840.0,95839.0,0.08360333]
[1734944601381,0.005,95840.0,95839.0,0.13280333]
[1734944601792,0.00104326,95850.0,95839.0,0.13280333]
[1734944602003,0.00104326,95850.0,95840.0,0.15060028]
[1734944602204,0.00104326,95858.0,95848.0,0.208662]
[1734944602429,0.02556525,95876.0,95852.0,0.208653]
[1734944602642,0.10235166,95875.0,95860.0,0.15060028]
[1734944602855,0.208622,95868.0,95860.0,0.15060028]
[1734944603060,0.00104326,95867.0,95860.0,0.15060028]
[1734944603270,0.208624,95866.0,95860.0,0.15060028]
[1734944603473,0.00104326,95865.0,95860.0,0.15060028]
[1734944603674,0.208628,95864.0,95860.0,0.15060028]
[1734944603791,0.00104326,95863.0,95860.0,0.15060028]
[1734944603991,0.00104326,95863.0,95850.0,0.15060028]
[1734944604198,0.10235166,95863.0,95841.0,0.09256776]
[1734944604571,0.208647,95856.0,95850.0,0.15060028]
[1734944604697,0.00104326,95855.0,95850.0,0.15060028]
[1734944604897,0.20865,95854.0,95850.0,0.15060028]
[1734944605145,0.00104326,95853.0,95843.0,0.09256776]
[1734944605864,0.208655,95852.0,95843.0,0.09256776]
[1734944606067,0.00104326,95851.0,95843.0,0.09256776]
[1734944606278,0.00104326,95851.0,95841.0,0.208677]
[1734944606481,0.20865,95854.0,95841.0,0.208677]
[1734944606691,0.00104326,95853.0,95843.0,0.001]
[1734944607095,0.208665,95847.0,95843.0,0.001]
[1734944607304,0.00104326,95846.0,95843.0,0.001]
[1734944607500,0.208661,95849.0,95843.0,0.001]
[1734944607707,0.00104326,95848.0,95839.0,0.23978015]
[1734944607931,0.00104326,95848.0,95844.0,0.208672]
[1734944608112,0.20865,95854.0,95840.0,0.208681]
[1734944608314,0.208659,95850.0,95843.0,0.002]
[1734944608517,0.00104326,95849.0,95839.0,0.23978015]
[1734944608784,0.208663,95848.0,95839.0,0.23978015]
[1734944608970,0.208659,95850.0,95839.0,0.24178015]
[1734944609180,0.00104326,95849.0,95839.0,0.23978015]
[1734944609378,0.00104326,95849.0,95843.0,0.001]
[1734944609796,0.00104326,95849.0,95839.0,0.23978015]
[1734944610446,0.00104326,95849.0,95840.0,0.208681]
[1734944610653,0.208663,95848.0,95839.0,0.23978015]
[1734944610866,0.20865,95854.0,95840.0,0.208681]
[1734944611077,0.00104326,95853.0,95840.0,0.208681]
[1734944611487,0.00104326,95853.0,95851.0,0.208656]
[1734944611690,0.00104326,95862.0,95850.0,0.208657]
[1734944611844,0.00104326,95861.0,95850.0,0.15060028]
[1734944612047,0.001,95853.0,95851.0,0.208655]
[1734944612441,0.00104326,95862.0,95851.0,0.208655]
[1734944612736,8.56e-05,95865.0,95860.0,0.208636]
[1734944612918,8.56e-05,95865.0,95861.0,0.0771]
[1734944613582,8.56e-05,95865.0,95862.0,0.256533]
[1734944613801,8.56e-05,95865.0,95862.0,0.0479]
[1734944614132,8.56e-05,95865.0,95863.0,0.31098255]
[1734944614768,8.56e-05,95865.0,95864.0,0.15]
[1734944614924,8.56e-05,95865.0,95864.0,0.3312084]
[1734944616542,8.56e-05,95865.0,95864.0,0.47012605]
[1734944617087,0.02556525,95876.0,95865.0,0.625878]
[1734944617220,0.02556525,95876.0,95866.0,0.25295164]
[1734944617608,0.02556525,95876.0,95875.0,0.208604]
[1734944618250,0.02556525,95876.0,95875.0,0.283804]
[1734944618711,0.02609771,95876.0,95875.0,0.283804]
[1734944618944,0.02609771,95876.0,95875.0,0.287804]
[1734944620210,0.02609771,95876.0,95875.0,0.004]
[1734944620935,0.02714097,95876.0,95875.0,0.004]
[1734944621172,0.02714097,95876.0,95867.0,0.09251709]
[1734944621173,0.208616,95870.0,95867.0,0.07551709]
[1734944621408,0.20862,95868.0,95867.0,0.07551709]
[1734944621890,0.20862,95868.0,95864.0,0.13877564]
[1734944621891,0.208629,95864.0,95862.0,0.0479]
[1734944622126,0.208633,95862.0,95852.0,0.13877564]
[1734944622356,0.00104326,95861.0,95852.0,0.13877564]
[1734944622622,0.208621,95868.0,95852.0,0.13877564]
[1734944622861,0.208621,95868.0,95850.0,0.15060028]
[1734944622862,0.208624,95866.0,95854.0,0.20865]
[1734944623088,0.00104326,95865.0,95850.0,0.35925828]
[1734944623578,0.208642,95858.0,95850.0,0.15060028]
[1734944624018,0.00104326,95857.0,95850.0,0.15060028]
[1734944624491,0.208646,95856.0,95850.0,0.15060028]
[1734944624736,0.00104326,95855.0,95849.0,0.0496]
[1734944624969,0.00104326,95855.0,95850.0,0.002]
[1734944625207,0.00104326,95861.0,95849.0,0.0496]
[1734944625465,0.208639,95859.0,95850.0,0.002]
[1734944625706,0.00104326,95858.0,95850.0,0.002]
[1734944625963,0.208644,95857.0,95850.0,0.002]
[1734944626202,0.00104326,95856.0,95850.0,0.002]
[1734944626617,0.00104326,95856.0,95850.0,0.0315]
[1734944627251,0.417297,95855.0,95850.0,0.0315]
[1734944627460,0.208652,95853.0,95850.0,0.0315]
[1734944627689,0.208657,95851.0,95850.0,0.0345]
[1734944628117,0.20864,95859.0,95850.0,0.0345]
[1734944628331,0.308626,95866.0,95850.0,0.0345]
[1734944628332,0.208644,95857.0,95850.0,0.0345]
[1734944628531,0.208654,95853.0,95850.0,0.0315]
[1734944628739,0.208657,95851.0,95850.0,0.0315]
[1734944629979,0.001,95853.0,95852.0,0.2756]
[1734944630197,0.001,95853.0,95852.0,0.484255]
[1734944630408,0.001,95853.0,95852.0,0.5855634]
[1734944630620,0.00104326,95875.0,95868.0,0.208618]
[1734944630841,0.00104326,95878.0,95865.0,0.15060028]
[1734944631050,0.00104326,95885.0,95872.0,0.417222]
[1734944631258,0.20962726,95885.0,95872.0,0.178611]
[1734944631484,0.00104326,95875.0,95872.0,0.178611]
[1734944631898,0.00104326,95875.0,95872.0,0.387222]
[1734944632105,0.00104326,95875.0,95872.0,0.178611]
[1734944632312,0.208586,95884.0,95866.0,0.283724]
[1734944632313,0.00104326,95883.0,95866.0,0.0751]
[1734944632755,0.005,95875.0,95866.0,0.0751]
[1734944633166,0.005,95875.0,95867.0,0.208622]
[1734944633373,0.005,95875.0,95871.0,0.208611]
[1734944633572,0.00104326,95874.0,95871.0,0.208611]
[1734944634208,0.00104326,95874.0,95872.0,0.001]
[1734944634337,0.00104326,95874.0,95873.0,0.208609]
[1734944634545,0.00104326,95884.0,95873.0,0.208609]
[1734944634979,0.00104326,95884.0,95874.0,0.0477]
[1734944635190,0.00104326,95890.0,95874.0,0.0477]
[1734944636371,0.208579,95887.0,95875.0,0.208604]
[1734944636564,0.00104326,95886.0,95875.0,0.208604]
[1734944637523,0.00104326,95886.0,95875.0,0.209604]
[1734944638556,0.417193,95879.0,95875.0,0.001]
[1734944638759,0.02714097,95876.0,95875.0,0.001]
[1734944639393,0.02609771,95876.0,95875.0,0.001]
[1734944640256,0.02609771,95876.0,95875.0,0.52151]
[1734944640430,0.02609771,95876.0,95875.0,0.52251]
[1734944640662,0.02609771,95876.0,95875.0,0.52151]
[1734944641068,0.02609771,95876.0,95875.0,0.52251]
[1734944641279,0.02609771,95876.0,95875.0,0.52151]
[1734944641688,0.02609771,95876.0,95875.0,0.52251]
[1734944641899,0.02609771,95876.0,95875.0,0.52151]
[1734944642119,0.02609771,95876.0,95875.0,0.79371]
[1734944642335,0.02609771,95876.0,95875.0,0.8950184]
[1734944642787,0.0143242,95917.0,95908.0,0.208531]
[1734944642991,0.0143242,95917.0,95906.0,0.0806]
[1734944643204,0.00015966,95912.0,95910.0,0.208528]
[1734944643436,0.00015966,95912.0,95911.0,0.00104251]
[1734944643644,0.00015966,95912.0,95911.0,0.25235091]
[1734944643853,0.00015966,95912.0,95911.0,0.2513084]
[1734944644274,0.00015966,95912.0,95911.0,0.7726284]
[1734944644889,0.00015966,95912.0,95911.0,0.67532]
[1734944645106,0.00015966,95912.0,95911.0,0.52532]
[1734944645319,0.00120292,95912.0,95911.0,0.52532]
[1734944645517,0.10146806,95912.0,95911.0,0.52532]
[1734944645655,0.00015966,95912.0,95911.0,0.52532]
[1734944646259,0.00015966,95912.0,95911.0,0.52132]
[1734944646492,0.00315966,95912.0,95911.0,0.52132]
[1734944647185,0.00515966,95912.0,95911.0,0.52132]
[1734944647357,0.00015966,95912.0,95911.0,0.52132]
[1734944647787,0.00115966,95912.0,95911.0,0.52132]
[1734944647917,0.00015966,95912.0,95911.0,0.52132]
[1734944649930,0.00215966,95912.0,95911.0,0.52132]
[1734944650160,0.21068366,95912.0,95911.0,0.52132]
[1734944650564,0.21168366,95912.0,95911.0,0.52132]
[1734944650800,0.20868366,95912.0,95911.0,0.52132]
[1734944651213,0.31199206,95912.0,95911.0,0.52132]
[1734944651424,0.42256403,95912.0,95911.0,0.52132]
[1734944652270,0.42056403,95912.0,95911.0,0.52132]
[1734944652726,0.42156403,95912.0,95911.0,0.52132]
[1734944652931,0.42056403,95912.0,95911.0,0.52132]
[1734944653356,0.42556403,95912.0,95911.0,0.52132]
[1734944654109,0.45797043,95912.0,95911.0,0.52132]
[1734944654328,0.44603918,95912.0,95911.0,0.52132]
[1734944656165,0.44603918,95912.0,95911.0,0.44931999]
[1734944656399,0.44603918,95912.0,95911.0,0.42431999]
[1734944657439,0.31499206,95912.0,95911.0,0.42431999]
[1734944657648,0.21368366,95912.0,95911.0,0.42431999]
[1734944658686,0.20868366,95912.0,95911.0,0.42431999]
[1734944658889,0.21268366,95912.0,95911.0,0.42431999]
[1734944659065,0.00415966,95912.0,95911.0,0.42431999]
[1734944659717,0.00015966,95912.0,95911.0,0.42431999]
[1734944660027,0.00415966,95912.0,95911.0,0.42431999]
[1734944660236,0.00015966,95912.0,95911.0,0.42431999]
[1734944660449,0.00015966,95912.0,95911.0,0.63284599]
[1734944660658,0.00324526,95912.0,95911.0,0.63284599]
[1734944661536,0.21176926,95912.0,95911.0,0.42431999]
[1734944661756,0.31007766,95912.0,95911.0,0.42431999]
[1734944662176,0.31407766,95912.0,95911.0,0.42431999]
[1734944662592,0.41407766,95912.0,95911.0,0.42431999]
[1734944662814,0.41407766,95912.0,95911.0,0.42931999]
[1734944663066,0.41007766,95912.0,95911.0,0.42431999]
[1734944663281,0.41207766,95912.0,95911.0,0.42431999]
[1734944663478,0.41007766,95912.0,95911.0,0.42431999]
[1734944663926,0.41207766,95912.0,95911.0,0.42431999]
[1734944664102,0.41207766,95912.0,95911.0,0.42629875]
[1734944665049,0.51207766,95912.0,95911.0,0.42629875]
[1734944666037,0.51207766,95912.0,95911.0,0.35429874]
[1734944666267,0.54455991,95912.0,95911.0,0.35429874]
[1734944666591,0.41207766,95912.0,95911.0,0.35429874]
[1734944667564,0.51207766,95912.0,95911.0,0.35429874]
[1734944667748,0.41207766,95912.0,95911.0,0.35429874]
[1734944668847,0.51207766,95912.0,95911.0,0.35429874]
[1734944669098,0.61156724,95912.0,95911.0,0.25003374]
[1734944669305,0.76156724,95912.0,95911.0,0.23146458]
[1734944669534,0.73746545,95912.0,95911.0,0.22846458]
[1734944669745,0.63546545,95912.0,95911.0,0.22846458]
[1734944669953,0.59346545,95912.0,95911.0,0.22946458]
[1734944670155,0.49346545,95912.0,95911.0,0.22946458]
[1734944670484,0.60399506,95912.0,95911.0,0.22946458]
[1734944671293,0.60399506,95912.0,95911.0,0.15746457]
[1734944671829,0.60399506,95912.0,95911.0,0.00297876]
[1734944672023,0.78019506,95912.0,95911.0,7.6e-07]
[1734944672684,0.78019506,95912.0,95911.0,0.00017196]
[1734944673078,0.04073305,95912.0,95911.0,0.00017196]
[1734944673282,0.0143242,95917.0,95912.0,0.539848]
[1734944673693,0.0143242,95917.0,95914.0,0.41704]
[1734944673914,0.0143242,95917.0,95916.0,0.208515]
[1734944674517,8.215e-05,95926.0,95925.0,0.208496]
[1734944676323,8.215e-05,95926.0,95916.0,0.15036892]
[1734944676525,8.215e-05,95926.0,95920.0,0.208505]
[1734944676760,8.215e-05,95926.0,95922.0,0.2085]
[1734944677002,8.215e-05,95926.0,95916.0,0.24282328]
[1734944677222,8.215e-05,95926.0,95922.0,0.208501]
[1734944677427,8.215e-05,95926.0,95918.0,0.208509]
[1734944677617,8.215e-05,95926.0,95916.0,0.45133828]
[1734944678165,8.215e-05,95926.0,95923.0,0.2085]